Cogmind - Beta 13 *** ADVENTURER MODE // 2024.04.11 @ 08:47:43 Player: Kitrana Result: Destroyed by G-50 Soldier with Heavy Laser Performance ------------- Evolutions (4) 2000 Regions Visited (8) 1600 Robots Destroyed (33) 165 Value Destroyed (844) 844 Prototype IDs (0) 0 Alien Tech Used (0) 0 Bonus (500) 500 TOTAL SCORE: 5109 Bonus ------- Entered DSFs 500 Cogmind --------- Core Integrity 0/850 Matter 300/300 Energy 100/100 System Corruption 5% Temperature Cool (9) Movement Core (50) Location -6/Factory Parts ------- > --- POWER (3) -------- (None) > --- PROPULSION (3) --- (None) > --- UTILITY (6) ------ (None) > --- WEAPON (3) ------- (None) > --- INVENTORY (5) ---- (None) Peak State ------------ > --- POWER ------------ (None) > --- PROPULSION ------- Improved Medium Treads Flexi-carbon Leg > --- UTILITY ---------- Weapon Cycler Force Field Component Analysis Suite > --- WEAPON ----------- High-powered Shock Rifle Datajack > --- INVENTORY -------- (None) [Rating: 29] Favorites ----------- Power Ion Engine Engine Ion Engine Propulsion Compact Wheel Treads Light Treads Leg Flexi-carbon Leg Wheel Compact Wheel Utility Hacking Suite Device Sensor Array Storage Small Storage Unit Processor Signal Interpreter Hackware Hacking Suite Weapon Light Assault Rifle Energy Gun High-powered Shock Rifle Ballistic Gun Light Assault Rifle Ballistic Cannon Light Cannon Special Weapon Mining Laser Impact Weapon Mace Special Melee Weapon Datajack Build | -11 -10 -10 -9 -9 -8 -7 -7 -6 ------- Run | Yrd Mat Min Mat Min Mat Fac DSF Fac Slots Evolved 8 | . . . 2 . 2 2 . 2 Power 2 | . . . 1 . . . . 1 Propulsion 1 | . . . . . . 1 . . Utility 4 | . . . 1 . 1 1 . 1 Weapon 1 | . . . . . 1 . . . Parts Attached 52 | 7 4 . 8 . 9 6 3 15 Power 5 | 1 . . 2 . 1 . . 1 Engine 5 | 1 . . 2 . 1 . . 1 Core . | . . . . . . . . . Reactor . | . . . . . . . . . Propulsion 15 | 3 . . 1 . 1 2 2 6 Treads 4 | . . . . . 1 . . 3 Leg 4 | 1 . . . . . . 1 2 Wheel 7 | 2 . . 1 . . 2 1 1 Hover . | . . . . . . . . . Flight . | . . . . . . . . . Utility 17 | 1 3 . 3 . 3 2 . 5 Device 10 | 1 1 . 1 . 1 1 . 5 Storage 3 | . 1 . 1 . 1 . . . Processor 3 | . 1 . . . 1 1 . . Hackware 1 | . . . 1 . . . . . Protection . | . . . . . . . . . Artifact . | . . . . . . . . . Weapon 15 | 2 1 . 2 . 4 2 1 3 Energy Gun 4 | 1 . . . . 1 1 . 1 Energy Cannon . | . . . . . . . . . Ballistic Gun 5 | . . . 2 . 1 1 . 1 Ballistic Cannon 2 | . 1 . . . 1 . . . Launcher . | . . . . . . . . . Special Weapon 2 | 1 . . . . 1 . . . Impact Weapon 1 | . . . . . . . 1 . Slashing Weapon . | . . . . . . . . . Piercing Weapon . | . . . . . . . . . Special Melee Weapon 1 | . . . . . . . . 1 Unidentified Prototypes . | . . . . . . . . . Parts Lost 33 | . . 4 . . 10 . 4 15 Power 4 | . . 1 . . 2 . . 1 Propulsion 12 | . . 1 . . 3 . 2 6 Utility 7 | . . 1 . . . . 1 5 Weapon 10 | . . 1 . . 5 . 1 3 Highest Loss Streak 7 | . . 4 . . 6 . 4 7 To Critical Strikes 1 | . . . . . . . . 1 Average Slot Usage (%) 65 | . 88 100 86 100 85 50 34 23 Engine 10 | . 14 14 16 22 15 . . . Treads 1 | . . . . . 3 . . 3 Leg 1 | . . . . . . . . 4 Wheel 11 | . 28 28 14 22 8 10 5 . Device 9 | . 12 14 10 11 8 7 4 7 Storage 3 | . 2 . 1 . 9 7 4 . Processor 5 | . 2 14 11 11 9 7 5 . Hackware 5 | . . . 9 11 9 7 5 . Energy Gun 1 | . . . . . 2 1 2 3 Ballistic Gun 7 | . . . 19 22 6 5 3 . Ballistic Cannon 3 | . 13 14 2 . 7 . . . Special Weapon 3 | . 14 14 . . 4 . . . Naked Turns 32 | . . . . . . . 14 18 Heaviest Build 25 | 8 15 10 15 15 25 16 16 15 Greatest Support 40 | 32 32 32 32 32 32 22 22 40 Greatest Overweight (x) 2 | . . . . . 1 1 1 2 Average Overweight (x) . | . . . . . . . . . Largest Inventory Capacity 8 | 5 8 5 8 5 8 8 8 5 Average Capacity 6 | 5 5 5 5 5 7 8 7 5 Most Carried 4 | 2 3 3 2 2 3 2 3 4 Average Carried . | . . 3 . 2 1 . 1 . Final Capacity 8 | 5 5 5 5 5 8 8 5 5 Final Carried 3 | . 3 3 2 2 . 1 3 . Class Distribution -------------------- 48% | Mutant 39% | Hacker-Mutant 6% | Hacker-Skirmisher Dominant Class ---------------- Mutant | -10/Materials Mutant | -10/Mines Hacker-Mutant | -9/Materials Hacker-Mutant | -9/Mines Hacker-Mutant | -8/Materials Hacker-Mutant | -7/Factory Hacker-Mutant | -7/DSF Mutant | -6/Factory Resources | -11 -10 -10 -9 -9 -8 -7 -7 -6 ----------- Run | Yrd Mat Min Mat Min Mat Fac DSF Fac Matter Collected 946 | 270 91 . 155 22 131 . 6 271 Remotely . | . . . . . . . . . Salvage Created 848 | 16 73 . 243 55 265 . 14 182 Parts 63 | 4 11 . 16 1 14 . 1 16 Haulers Intercepted . | . . . . . . . . . Recyclers Shooed . | . . . . . . . . . Parts Field Recycled . | . . . . . . . . . Retrieved Matter . | . . . . . . . . . Parts Self-Destructed . | . . . . . . . . . Prevented . | . . . . . . . . . Kills | -11 -10 -10 -9 -9 -8 -7 -7 -6 ------- Run | Yrd Mat Min Mat Min Mat Fac DSF Fac Combat Hostiles Destroyed 24 | . 4 . 6 1 9 . 1 3 Melee 1 | . . . . . . . . 1 Guns 14 | . . . 6 1 5 . . 2 Cannons 8 | . 4 . . . 4 . . . Classes Destroyed 11 | 1 3 . 3 . 1 . 1 2 Worker 1 | . . . . . . . . 1 Builder 2 | . 1 . . . . . . 1 Tunneler 1 | 1 . . . . . . . . Recycler 1 | . . . 1 . . . . . Operator 3 | . . . 2 . . . . 1 Watcher 1 | . 1 . . . . . . . Swarmer 10 | . 4 . 3 . 3 . . . Cutter 1 | . . . . . . . 1 . Grunt 9 | . . . 3 1 4 . . 1 Sentry 2 | . . . . . 2 . . . Hunter 2 | . . . . . . . . 2 Best Kill Streak 6 | 1 3 . 3 1 6 . 1 2 Combat Bots Only 6 | . 3 . 3 1 6 . 1 2 Max Kills in Single Turn 2 | 1 1 . 2 1 2 . 1 1 Gunslinging 1 | . . . 1 . . . . . Exploded . | . . . . . . . . . Melee 1 | . . . . . . . . 1 Uniques/NPCs Destroyed . | . . . . . . . . . Combat | -11 -10 -10 -9 -9 -8 -7 -7 -6 -------- Run | Yrd Mat Min Mat Min Mat Fac DSF Fac Hostile Shots Fired 442 | . 30 4 10 14 100 . 64 220 Missed 102 | . 8 . 4 7 17 . 19 47 Damage Taken 4849 | . 137 236 42 75 1052 . 933 2374 Core 1823 | . 43 67 . 8 354 . 498 853 Absorbed by Shields 8 | . . . . . . . . 8 Ignored by Resistances 1348 | . 44 65 15 23 271 . 258 672 Regen/Repaired (Parts) 52 | . . . . . 52 . . . Core Remaining (%) 63 | 100 . 56 . 98 35 . 28 . Volleys Fired 87 | 3 16 . 15 10 30 . 2 11 Largest 3 | 1 2 . 2 2 3 . 1 1 Hottest 135 | 40 135 . 55 43 120 . 65 60 Shots Fired 144 | 3 21 . 30 13 64 . 2 11 Gun 92 | 3 . . 29 13 34 . 2 11 Cannon 47 | . 16 . 1 . 30 . . . Launcher . | . . . . . . . . . Special 5 | . 5 . . . . . . . Kinetic 116 | . 16 . 30 13 54 . . 3 Thermal 18 | 3 5 . . . 10 . . . Explosive . | . . . . . . . . . Electromagnetic 10 | . . . . . . . 2 8 Robot Hit Streak 35 | 3 4 . 17 8 35 . 2 13 Robot Miss Streak 3 | . 2 . 3 1 2 . . . Penetration Max 1 | . . . . . . . . 1 Secondary Targets 1 | . . . 1 . . . . . Max Gunslinging Chain 1 | . . . 1 . . . . . Shots Hit Robots 123 | 3 11 . 23 11 51 . 4 20 Core Hits 62 | 1 6 . 14 5 20 . 2 14 Critical Kills . | . . . . . . . . . Critical Parts Destroyed . | . . . . . . . . . Critical Strikes 2 | . . . . . 2 . . . Burn 2 | . . . . . 2 . . . Melee Attacks 11 | . . . . . . . 2 9 Impact 2 | . . . . . . . 2 . Slashing . | . . . . . . . . . Piercing . | . . . . . . . . . Sneak Attacks 9 | . . . . . . . . 9 Combat Hostiles 1 | . . . . . . . . 1 Follow-up Attacks . | . . . . . . . . . Damage Inflicted 2046 | 34 197 . 314 117 935 . 99 350 Guns 1191 | 34 . . 297 117 420 . 24 299 Cannons 699 | . 173 . 17 . 509 . . . Explosions . | . . . . . . . . . Melee 67 | . . . . . . . 67 . Ramming 65 | . . . . . 6 . 8 51 Kinetic 1477 | . 173 . 314 117 783 . . 90 Thermal 204 | 34 24 . . . 146 . . . Explosive . | . . . . . . . . . Electromagnetic 233 | . . . . . . . 24 209 Impact 67 | . . . . . . . 67 . Slashing . | . . . . . . . . . Piercing . | . . . . . . . . . Highest Corruption 5 | . . . . . . . 2 5 Average Corruption 2 | . . . . . . . 2 2 Corruption Purged . | . . . . . . . . . Corruption Blocked . | . . . . . . . . . Effects 2 | . . . . . . . . 2 Matter Fused 1 | . . . . . . . . 1 Data Loss (major) 1 | . . . . . . . . 1 Overload Shots . | . . . . . . . . . Overflow Damage 3 | . 1 . . . . . 2 . Projectiles 1 | . 1 . . . . . . . Explosions . | . . . . . . . . . Melee 2 | . . . . . . . 2 . Knockbacks 6 | . 3 . . . 3 . . . Impact . | . . . . . . . . . Kinetic 5 | . 2 . . . 3 . . . Secondary 1 | . 1 . . . . . . . Self-Inflicted Damage 7 | . . . . . 3 . 4 . Shots . | . . . . . . . . . Rammed 17 | . . . . . 2 . 3 12 Targets Rammed 42 | . . . . . 2 . 3 37 Kicked 24 | . . . . . . . . 24 Crushed 1 | . . . . . . . . 1 Highest Temperature 792 | . 105 . 12 31 792 . . 2 Average Temperature 153 | . 46 . 5 10 230 . . 2 Received Heat Transfer 991 | . . . 24 72 630 . . 265 Effects 21 | . . . . . 21 . . . Shutdowns 2 | . . . . . 2 . . . Energy Bleed 4 | . . . . . 4 . . . Interference 1 | . . . . . 1 . . . Matter Decay 6 | . . . . . 6 . . . Short Circuit 1 | . . . . . 1 . . . Damage (minor) 2 | . . . . . 2 . . . Damage (major) 4 | . . . . . 4 . . . Damage (core) 1 | . . . . . 1 . . . Siege Activations . | . . . . . . . . . Robots Corrupted . | . . . . . . . . . Combat Hostiles . | . . . . . . . . . Parts Fried 6 | . . . . . . . 2 4 Impact Corruptions 1 | . . . . . . . 1 . Robots Melted . | . . . . . . . . . Combat Hostiles . | . . . . . . . . . Parts Melted . | . . . . . . . . . Heat Transferred 643 | 75 50 . . . 518 . . . Parts Sabotaged . | . . . . . . . . . Parts Stolen . | . . . . . . . . . Parts Stripped . | . . . . . . . . . Power Chain Reactions . | . . . . . . . . . Alert | -11 -10 -10 -9 -9 -8 -7 -7 -6 ------- Run | Yrd Mat Min Mat Min Mat Fac DSF Fac Peak Influence 324 | 5 191 62 207 98 324 48 39 60 Initial 68 | . 2 62 7 68 31 38 29 8 Average 80 | . 100 52 74 74 193 43 23 20 Maximum Alert Level 1 | . . . 1 . 1 . . . Low Security (%) 88 | 100 100 100 99 100 39 100 100 100 Level 1 11 | . . . . . 60 . . . Level 2 . | . . . . . . . . . Level 3 . | . . . . . . . . . Level 4 . | . . . . . . . . . Level 5 . | . . . . . . . . . High Security . | . . . . . . . . . Max Security . | . . . . . . . . . Squads Dispatched 8 | . . . 1 . 3 1 1 2 Investigation 3 | . . . . . 1 1 . 1 Extermination 1 | . . . . . . . . 1 Reinforcement 4 | . . . 1 . 2 . 1 . Assault . | . . . . . . . . . Garrison . | . . . . . . . . . Intercept . | . . . . . . . . . Searches Triggered . | . . . . . . . . . Construction Impeded . | . . . . . . . . . Haulers Reinforced . | . . . . . . . . . Active Scanning Responses . | . . . . . . . . . Cargo Convoy Interrupts . | . . . . . . . . . Stealth | -11 -10 -10 -9 -9 -8 -7 -7 -6 --------- Run | Yrd Mat Min Mat Min Mat Fac DSF Fac Distress Signals 5 | . 1 . 1 . 3 . . . Communications Jammed . | . . . . . . . . . Distress Signals . | . . . . . . . . . Times Spotted 71 | . 11 2 12 2 28 . 6 10 Peak Tracking Total 7 | . 4 2 6 2 7 . 5 5 Tactical Retreats 5 | . 1 . 1 . 2 . . 1 Traps | -11 -10 -10 -9 -9 -8 -7 -7 -6 ------- Run | Yrd Mat Min Mat Min Mat Fac DSF Fac Traps Triggered 2 | . . . . . . 1 1 . Indirectly . | . . . . . . . . . Trap Hack Attempts . | . . . . . . . . . Triggered . | . . . . . . . . . Disarmed . | . . . . . . . . . Reprogrammed 6 | . . . . . . . . 6 Reused . | . . . . . . . . . Traps Extracted . | . . . . . . . . . Installed . | . . . . . . . . . Triggered . | . . . . . . . . . Machines | -11 -10 -10 -9 -9 -8 -7 -7 -6 ---------- Run | Yrd Mat Min Mat Min Mat Fac DSF Fac Machines Disabled 3 | . . . . . 3 . . . Max in Single Turn 1 | . . . . . 1 . . . Machines Repaired . | . . . . . . . . . Machines Dismantled . | . . . . . . . . . Machines Sabotaged . | . . . . . . . . . Overloaded Fab Kills . | . . . . . . . . . Hacking | -11 -10 -10 -9 -9 -8 -7 -7 -6 --------- Run | Yrd Mat Min Mat Min Mat Fac DSF Fac Machines Accessed 12 | . 4 . 1 . 3 2 . 2 Terminals 9 | . 4 . 1 . 1 1 . 2 Fabricators 1 | . . . . . . 1 . . Repair Stations 1 | . . . . . 1 . . . Recycling Units 1 | . . . . . 1 . . . Scanalyzers . | . . . . . . . . . Garrison Access . | . . . . . . . . . Total Hacks 41 | . 18 . 2 . 12 3 . 6 Successful 31 | . 11 . 2 . 11 3 . 4 Failed 10 | . 7 . . . 1 . . 2 Catastrophic 1 | . 1 . . . . . . . Database Lockouts . | . . . . . . . . . Manual 1 | . 1 . . . . . . . Terminals 33 | . 18 . 2 . 6 1 . 6 Fabricators 2 | . . . . . . 2 . . Repair Stations 4 | . . . . . 4 . . . Recycling Units 2 | . . . . . 2 . . . Scanalyzers . | . . . . . . . . . Garrison Access . | . . . . . . . . . Terminal Hacks 23 | . 11 . 2 . 5 1 . 4 Record 8 | . 5 . 2 . 1 . . . Open DSF 2 | . . . . . . 1 . 1 Alert Level 2 | . 2 . . . . . . . Locate Traps 3 | . 1 . . . 1 . . 1 Reprogram Traps 2 | . . . . . . . . 2 Reinforcement Status 1 | . 1 . . . . . . . Recall Investigation 1 | . . . . . 1 . . . Recall Assault 1 | . . . . . 1 . . . Registered Components 1 | . . . . . 1 . . . Zone Layout 2 | . 2 . . . . . . . Fabricator Hacks 2 | . . . . . . 2 . . Network Status 1 | . . . . . . 1 . . Build 1 | . . . . . . 1 . . Repair Station Hacks 4 | . . . . . 4 . . . Scan Component 2 | . . . . . 2 . . . Repair 2 | . . . . . 2 . . . Recycling Unit Hacks 2 | . . . . . 2 . . . Report Inventory 1 | . . . . . 1 . . . Retrieve Components 1 | . . . . . 1 . . . Scanalyzer . | . . . . . . . . . Garrison Access Hacks . | . . . . . . . . . Unauthorized Hacks . | . . . . . . . . . Terminals . | . . . . . . . . . Fabricators . | . . . . . . . . . Repair Stations . | . . . . . . . . . Recycling Units . | . . . . . . . . . Scanalyzers . | . . . . . . . . . Garrison Access . | . . . . . . . . . Data Cores Recovered 2 | . . . 1 . . . . 1 Used . | . . . . . . . . . Hacking Detections 9 | . 4 . 1 . 2 1 . 1 Full Trace Events 3 | . 1 . . . 1 . . 1 Feedback Events . | . . . . . . . . . Feedback Blocked . | . . . . . . . . . Robot Schematics Acquired . | . . . . . . . . . Robots Built . | . . . . . . . . . Authchips . | . . . . . . . . . Time . | . . . . . . . . . Total Robot Build Rating . | . . . . . . . . . Part Schematics Acquired . | . . . . . . . . . Parts Built 1 | . . . . . . 1 . . Authchips . | . . . . . . . . . Time 53 | . . . . . . 53 . . Total Part Build Rating 6 | . . . . . . 6 . . Parts Repaired 1 | . . . . . 1 . . . Time 52 | . . . . . 52 . . . Parts Recycled . | . . . . . . . . . Recycled Matter . | . . . . . . . . . Retrieved Matter . | . . . . . . . . . Retrieved Components 10 | . . . . . 10 . . . Parts Scanalyzed . | . . . . . . . . . Part Schematics Acquired . | . . . . . . . . . Parts Damaged . | . . . . . . . . . Bothacking | -11 -10 -10 -9 -9 -8 -7 -7 -6 ------------ Run | Yrd Mat Min Mat Min Mat Fac DSF Fac Used RIF Installer . | . . . . . . . . . Robots Hacked 5 | . . . . . . . . 5 Non-combat 4 | . . . . . . . . 4 Combat 1 | . . . . . . . . 1 Robot Hacks Applied 9 | . . . . . . . . 9 parse_system 2 | . . . . . . . . 2 no_distress 4 | . . . . . . . . 4 find_chute 2 | . . . . . . . . 2 find_recycling 1 | . . . . . . . . 1 Relay Couplers Released . | . . . . . . . . . Fabnet Peak Effective % . | . . . . . . . . . Robots Rewired . | . . . . . . . . . Allies Hacked . | . . . . . . . . . Hacks Repelled . | . . . . . . . . . Allies | -11 -10 -10 -9 -9 -8 -7 -7 -6 -------- Run | Yrd Mat Min Mat Min Mat Fac DSF Fac Total Allies . | . . . . . . . . . Largest Group . | . . . . . . . . . Highest-Rated Group . | . . . . . . . . . Highest-Rated Ally . | . . . . . . . . . Total Orders . | . . . . . . . . . Ally Attacks . | . . . . . . . . . Total Damage . | . . . . . . . . . Kills . | . . . . . . . . . Allies Corrupted . | . . . . . . . . . Allies Melted . | . . . . . . . . . Intel | -11 -10 -10 -9 -9 -8 -7 -7 -6 ------- Run | Yrd Mat Min Mat Min Mat Fac DSF Fac Robot Analysis Total . | . . . . . . . . . Derelict Logs Recovered 1 | . . . . 1 . . . . Drone Launches . | . . . . . . . . . Drone Recoveries . | . . . . . . . . . Exploration | -11 -10 -10 -9 -9 -8 -7 -7 -6 ------------- Run | Yrd Mat Min Mat Min Mat Fac DSF Fac Turns Passed 2392 | 60 352 12 341 247 461 193 74 652 Spaces Moved 1538 | 39 286 13 219 216 240 136 63 326 Core 104 | 2 . . . . 35 17 34 16 Treads 192 | . . . . . 44 . . 148 Legs 178 | 12 . . . . . . 4 162 Wheels 1064 | 25 286 13 219 216 161 119 25 . Hover . | . . . . . . . . . Flight . | . . . . . . . . . Fastest Speed 50 | 50 100 100 100 100 100 85 50 50 Average Speed 110 | 103 100 100 100 100 126 91 76 138 Slowest Speed 240 | 120 100 100 100 100 240 100 120 170 Overloaded Moves . | . . . . . . . . . Propulsion Burnouts . | . . . . . . . . . Robots Hopped . | . . . . . . . . . Cave-ins Triggered . | . . . . . . . . . Exploration Rate (%) 29 | 5 52 9 23 58 28 4 80 7 Regions Visited 8 Branch Regions 2 Pre-discovered Areas 1 | . . 1 . . . . . . Known Exits Taken 5 | . 1 1 1 1 . 1 . . Unknown Exits Taken 2 | 1 . . . . 1 . . . Scrap Searched . | . . . . . . . . . Spaces Dug 1 | . . . . . 1 . . . Terrain Destroyed 4 | . 1 . . . 3 . . . Melee . | . . . . . . . . . Projectile 4 | . 1 . . . 3 . . . AOE . | . . . . . . . . . Terrain Rammed . | . . . . . . . . . Walls Destroyed . | . . . . . . . . . Machines Disabled . | . . . . . . . . . Actions | -11 -10 -10 -9 -9 -8 -7 -7 -6 --------- Run | Yrd Mat Min Mat Min Mat Fac DSF Fac Total 2060 | 56 320 12 313 236 341 203 82 497 Wait 288 | . 9 . 65 11 55 56 5 87 Move 1530 | 38 285 12 218 215 239 135 62 326 Hop . | . . . . . . . . . Pick Up 47 | 7 5 . 6 . 6 6 5 12 Fast Attach . | . . . . . . . . . Attach 43 | 7 1 . 6 . 7 4 3 15 Detach . | . . . . . . . . . Swap 9 | . 3 . 2 . 2 2 . . Drop 3 | 1 1 . 1 . . . . . Fire 87 | 3 16 . 15 10 30 . 2 11 Melee 11 | . . . . . . . 2 9 Ram 5 | . . . . . 2 . 3 . Kick 24 | . . . . . . . . 24 Crush 13 | . . . . . . . . 13 Escape Stasis . | . . . . . . . . . Rewire . | . . . . . . . . . Trap . | . . . . . . . . . Miscellaneous . | . . . . . . . . . Route ------- -11/Scrapyard -10/Materials (discovered 2 exits: *Mat / *Min) -10/Mines -9/Materials -9/Mines (discovered 2 exits: *Mat / [*Zio]) -8/Materials -7/Factory (discovered 2 exits: Sto / DSF) -7/DSF -6/Factory History --------- Turn | Location | Event 4 | -11/Scrapyard | Discovered new exit (range 16) 61 | -11/Scrapyard | Entered Materials 306 | -10/Materials | Build established: Mutant 348 | -10/Materials | Discovered new exit (range 4) 353 | -10/Materials | Identified exit to Materials 403 | -10/Materials | Discovered new exit (range 9) 412 | -10/Materials | Identified exit to Mines 413 | -10/Materials | Entered Mines 414 | -10/Mines | Learned location of Storage (-7) 414 | -10/Mines | Assembled infested the area 418 | -10/Mines | Discovered exit to Materials (range 8) 419 | -10/Mines | Assisted by a Guerilla fighting off Assembled 425 | -10/Mines | Entered Materials 425 | -9/Materials | Evolved 2 slots: Power x1, Utility x1 455 | -9/Materials | Lost 4 parts (1p1n1u1w) 748 | -9/Materials | Discovered new exit (range 11) 757 | -9/Materials | Identified exit to Mines 766 | -9/Materials | Entered Mines 779 | -9/Mines | Build established: Hacker-Mutant 808 | -9/Mines | YI-UF0 nonchalantly dropped a Grenade Launcher on the ground 824 | -9/Mines | Discovered new exit (range 8) 825 | -9/Mines | A Derelict revealed a hidden shortcut to a safe place 830 | -9/Mines | Identified exit to Materials 1013 | -9/Mines | Entered Materials 1013 | -8/Materials | Evolved 2 slots: Utility x1, Weapon x1 1384 | -8/Materials | Repaired Ion Engine 1438 | -8/Materials | Core integrity fell below 50% 1463 | -8/Materials | Discovered new exit (range 12) 1465 | -8/Materials | Lost 6 parts (2p1n3w) 1474 | -8/Materials | Entered Factory 1474 | -7/Factory | Evolved 2 slots: Propulsion x1, Utility x1 1475 | -7/Factory | Identified exit to Storage 1615 | -7/Factory | Fabricated Imp. Arc Projector (x1) 1667 | -7/Factory | Identified exit to DSF 1667 | -7/Factory | Entered DSF 1706 | -7/DSF | Additional patrols routed to DSF 1727 | -7/DSF | Core integrity fell below 50% 1735 | -7/DSF | Discovered new exit (range 14) 1741 | -7/DSF | Entered Factory 1741 | -6/Factory | Evolved 2 slots: Power x1, Utility x1 1748 | -6/Factory | Lost 4 parts (2n1u1w) 1933 | -6/Factory | Lost 6 parts (1p3n1u1w) 2028 | -6/Factory | Build established: Mutant 2335 | -6/Factory | Core integrity fell below 50% 2384 | -6/Factory | Core integrity fell below 20% 2393 | -6/Factory | Destroyed by G-50 Soldier with Heavy Laser Last Messages --------------- 02327_ Kicked P-60 Hacker. 02331_ ALERT: Cargo convoy en route, clear transfer corridor. 02331_ Kicked P-60 Hacker. 02332_ Force Field destroyed. 02334_ Kicked P-60 Hacker. 02337_ U-05 Engineer builds a Wall. 02339_ Kicked P-60 Hacker. 02339_ Datajack destroyed. 02340_ Kicked P-60 Hacker. 02346_ P-60 Hacker resets A-15 Conveyor, behavior restored. 02347_ Kicked P-60 Hacker. 02349_ Imp. Medium Treads destroyed. 02358_ System corrupted: Matter fused (-6). 02359_ Carbon-fiber Leg destroyed. 02369_ Flexi-carbon Leg destroyed. 02371_ Weapon Cycler destroyed. 02375_ Component Analysis Suite destroyed. 02377_ System corrupted: Substantial component data lost. 02379_ Critical hit (Burn: +37). 02381_ G-50 Soldier suffers critical hit (Burn). Map ----- +----------------------------------------------------+ | ?????????????????????????????????????????????????? | | ?????????????????????????????????????????????????? | | ?????????????????????????????????????????????????? | | ?????????????????????????????????????????????????? | | ?????????????????????????????????????????????????? | | ?????????????????????????????????????????????????? | | ?????????????????????????????????????????????????? | | ?????????????????????????????????????????????????? | | ?????????????????????????????????????????????????? | | ?????????????????????????????????????????????????? | | ?????????????????????????????????????????????????? | | ?????????????????????????????????????????????????? | | ?????????????????????????????????????????????????? | | ??????????????????????????###########????????????? | | ??????????????????????????# """ #????????????? | | ??????????????????????????# "T" #????????????? | | ?????????????????########## #????????????? | | ?????????????????# # #????????????? | | ?????????????????# # """ """ #????????????? | | ?????????????????# # """ """ #????????????^ | | ?????????????????# # """ """ #????^???????? | | ?????????????????# " " " # #????? ????? | | ?????????????????# " " " ####+########## ???? | | ?????????????????# " " " # "??? | | ?????????????????# " "%" #%% "??? | | ?????????????# " " "@pg "??? | | #????????????# " " " #gg ??? | | #????????????# " " "%# ??? | | #????????????# " " " #####R#####+### #??? | | #????????????# " " " ## # #??? | | #????????????# ## """" """" # #??? | | #????????????# ## """" """" # #??? | | #????????????# ## """" """" # #??? | | +????????????# ## """" """" # #??? | | #????????????# ##] # #??? | | #????????????########### """" """" # #??? | | #??????????????????????# """" """" # #??? | | !=+??????????????????????# """" """" # #??? | | =%#??????????????????????# """" """" # #??? | | *#??????????????????????# + #??? | | #??????????????????????############## #??? | | #????###########???????????# # #??? | | #????# #???????????# """ # #??? | | #????# #???????????# """ # #??? | | #????# #???????????# """ # #??? | | #????# #???????????# # #??? | | #????# #???????????# """ / #??? | | #????# #???????#???# """ # #??? | | #????? ????????????# """ # ^^^^#??? | | #?####? ??????????????# = # ^ ^#??? | +----------------------------------------------------+ Best States ------------- Heat Dissipation 37 Energy Generation 15 Energy Capacity 400 Matter Stores 300 Matter Capacity 300 Sight Range 16 Robot Scan Range 14 Terrain Scan Range 16 Terrain Scan Density 10 ECM Strength 1 Resistance: KI 20 Resistance: TH 20 Resistance: EX 20 Resistance: EM 20 Resistance: I 20 Resistance: S 20 Resistance: P 20 Weapon Cycling 15 Evasion (%) 55 Melee Accuracy 6 Recoil Reduction 2 Offensive Hacking 20 Item Schematics ----------------- None Robot Schematics ------------------ None Fabricated ------------ Imp. Arc Projector | x1 | -7/Factory | Preloaded Alien Tech Used ----------------- None Achievements -------------- Just What I Needed Oops Please Form A Line Challenges ------------ None Game ------ Seed SegregatorGodBlaster Manual? 0 Play Time 00:40:18 Cumulative 7.6 hours Start 2024.04.11 @ 08:01:10 End 2024.04.11 @ 08:47:43 Sessions 1 Manual Loads 0 Difficulty Adventurer Special Mode None Game No. 12 Rogue 0 Adventurer 12 Explorer 0 Win Type - Total 0 Types 0/0/0/0/0/0/0/0/0 Lore% 11 Gallery% 13 Achievement% 15 Wizard Run 0 Options --------- Layout 1 ASCII 0 Keyboard 0 Movement Mouse Keybinds 0 Fullscreen 0 Font 20/SmallcapsGlow Map View 64x42 Zoom Use 0% Tactical HUD 1 Map Filters NONE Filters NONE Steam 1 RUN: aa452635-6c4c-42bc-bec3-fda3000e134e